fUSD/lending_fUSD_20260615
["ID","MTS","AMOUNT","RATE_DAILY","PERIOD"]
[425083819,1781475039000,-500.0,0.00013698,2]
[425083813,1781475039000,-500.0,0.00013698,2]
[425083815,1781475039000,-512.28714422,0.00013698,2]
[425083817,1781475039000,-500.0,0.00013698,2]
[425083811,1781475039000,-500.0,0.00013698,2]
[425083761,1781475039000,-242.08073426,0.00013557,2]
[425083809,1781475039000,-500.0,0.00013698,2]
[425083796,1781475039000,-500.0,0.00013698,2]
[425083757,1781475039000,-249.13739347,0.00013507,2]
[425083721,1781475039000,-150.0,0.00013425,2]
[425083759,1781475039000,-1000.0,0.00013553,2]
[425083821,1781475039000,-500.0,0.00013698,2]
[425083703,1781475039000,-500.0,0.00013425,2]
[425083705,1781475039000,-500.0,0.00013425,2]
[425083707,1781475039000,-500.0,0.00013425,2]
[425083709,1781475039000,-500.0,0.00013425,2]
[425083711,1781475039000,-158.46218591,0.00013425,2]
[425083724,1781475039000,-150.0,0.00013425,2]
[425083713,1781475039000,-500.0,0.00013425,2]
[425083715,1781475039000,-500.0,0.00013425,2]
[425083717,1781475039000,-500.0,0.00013425,2]
[425083734,1781475039000,-500.0,0.00013425,2]
[425083719,1781475039000,-231.40241046,0.00013425,2]
[425083732,1781475039000,-500.0,0.00013425,2]
[425083728,1781475039000,-500.0,0.00013425,2]
[425083726,1781475039000,-150.0,0.00013425,2]
[425083730,1781475039000,-204.40733021,0.00013425,2]
[425083736,1781475039000,-500.0,0.00013425,2]
[425083739,1781475039000,-500.0,0.00013425,2]
[425083741,1781475039000,-500.0,0.00013425,2]
[425083749,1781475039000,-150.0,0.00013488,2]
[425083747,1781475039000,-400.37540708,0.00013425,2]
[425083745,1781475039000,-500.0,0.00013425,2]
[425083743,1781475039000,-500.0,0.00013425,2]
[425083751,1781475039000,-150.0,0.00013488,2]
[425083755,1781475039000,-1000.0,0.000135,2]
[425083753,1781475039000,-150.0,0.00013488,2]
[425083823,1781475039000,-500.0,0.00013698,2]
[425083921,1781475039000,-500.0,0.00013698,2]
[425083828,1781475039000,-614.4232435,0.00013698,2]
[425083885,1781475039000,-500.0,0.00013698,2]
[425083887,1781475039000,-500.0,0.00013698,2]
[425083892,1781475039000,-500.0,0.00013698,2]
[425083891,1781475039000,-500.0,0.00013698,2]
[425083895,1781475039000,-500.0,0.00013698,2]
[425083899,1781475039000,-500.0,0.00013698,2]
[425083883,1781475039000,-500.0,0.00013698,2]
[425083897,1781475039000,-500.0,0.00013698,2]
[425083903,1781475039000,-500.0,0.00013698,2]
[425083906,1781475039000,-500.0,0.00013698,2]
[425083911,1781475039000,-500.0,0.00013698,2]
[425083881,1781475039000,-500.0,0.00013698,2]
[425083909,1781475039000,-500.0,0.00013698,2]
[425083913,1781475039000,-500.0,0.00013698,2]
[425083919,1781475039000,-500.0,0.00013698,2]
[425083915,1781475039000,-500.0,0.00013698,2]
[425083923,1781475039000,-500.0,0.00013698,2]
[425083917,1781475039000,-500.0,0.00013698,2]
[425083930,1781475039000,-323.22914473,0.00013698,2]
[425083932,1781475039000,-500.0,0.00013698,2]
[425083925,1781475039000,-500.0,0.00013698,2]
[425083928,1781475039000,-500.0,0.00013698,2]
[425083826,1781475039000,-500.0,0.00013698,2]
[425083934,1781475039000,-500.0,0.00013698,2]
[425083905,1781475039000,-500.0,0.00013698,2]
[425083888,1781475039000,-500.0,0.00013698,2]
[425083901,1781475039000,-500.0,0.00013698,2]
[425083877,1781475039000,-500.0,0.00013698,2]
[425083830,1781475039000,-500.0,0.00013698,2]
[425083840,1781475039000,-631.01,0.00013698,2]
[425083879,1781475039000,-500.0,0.00013698,2]
[425083842,1781475039000,-631.01,0.00013698,2]
[425083846,1781475039000,-631.01,0.00013698,2]
[425083844,1781475039000,-631.01,0.00013698,2]
[425083852,1781475039000,-292.56293859,0.00013698,2]
[425083848,1781475039000,-631.01,0.00013698,2]
[425083850,1781475039000,-500.0,0.00013698,2]
[425083832,1781475039000,-500.0,0.00013698,2]
[425083834,1781475039000,-500.0,0.00013698,2]
[425083838,1781475039000,-500.0,0.00013698,2]
[425083856,1781475039000,-500.0,0.00013698,2]
[425083836,1781475039000,-500.0,0.00013698,2]
[425083867,1781475039000,-500.0,0.00013698,2]
[425083876,1781475039000,-500.0,0.00013698,2]
[425083854,1781475039000,-500.0,0.00013698,2]
[425083869,1781475039000,-500.0,0.00013698,2]
[425083873,1781475039000,-500.0,0.00013698,2]
[425083878,1781475039000,-500.0,0.00013698,2]
[425083871,1781475039000,-500.0,0.00013698,2]
[425083875,1781475039000,-500.0,0.00013698,2]
[425083865,1781475039000,-500.0,0.00013698,2]
[425083861,1781475039000,-500.0,0.00013698,2]
[425083858,1781475039000,-500.0,0.00013698,2]
[425083863,1781475039000,-500.0,0.00013698,2]
[425084020,1781475040000,-500.0,0.00013698,2]
[425084018,1781475040000,-500.0,0.00013698,2]
[425083997,1781475040000,-500.0,0.00013698,2]
[425084011,1781475040000,-500.0,0.00013698,2]
[425084009,1781475040000,-500.0,0.00013698,2]
[425084003,1781475040000,-500.0,0.00013698,2]
[425084007,1781475040000,-500.0,0.00013698,2]
[425084005,1781475040000,-500.0,0.00013698,2]
[425084015,1781475040000,-500.0,0.00013698,2]
[425084026,1781475040000,-500.0,0.00013698,2]
[425084013,1781475040000,-500.0,0.00013698,2]
[425084024,1781475040000,-500.0,0.00013698,2]
[425084037,1781475040000,-500.0,0.00013698,2]
[425084031,1781475040000,-500.0,0.00013698,2]
[425084028,1781475040000,-500.0,0.00013698,2]
[425084042,1781475040000,-500.0,0.00013698,2]
[425084044,1781475040000,-500.0,0.00013698,2]
[425084039,1781475040000,-500.0,0.00013698,2]
[425084034,1781475040000,-500.0,0.00013698,2]
[425084035,1781475040000,-500.0,0.00013698,2]
[425083936,1781475040000,-500.0,0.00013698,2]
[425084046,1781475040000,-500.0,0.00013698,2]
[425084049,1781475040000,-500.0,0.00013698,2]
[425084001,1781475040000,-500.0,0.00013698,2]
[425084030,1781475040000,-500.0,0.00013698,2]
[425083999,1781475040000,-500.0,0.00013698,2]
[425083940,1781475040000,-500.0,0.00013698,2]
[425083989,1781475040000,-500.0,0.00013698,2]
[425084052,1781475040000,-503.57081224,0.00013698,2]
[425083944,1781475040000,-500.0,0.00013698,2]
[425083938,1781475040000,-500.0,0.00013698,2]
[425083942,1781475040000,-616.84,0.00013698,2]
[425083947,1781475040000,-500.0,0.00013698,2]
[425083951,1781475040000,-500.0,0.00013698,2]
[425083959,1781475040000,-500.0,0.00013698,2]
[425083961,1781475040000,-500.0,0.00013698,2]
[425083949,1781475040000,-500.0,0.00013698,2]
[425083953,1781475040000,-500.0,0.00013698,2]
[425083957,1781475040000,-500.0,0.00013698,2]
[425083955,1781475040000,-500.0,0.00013698,2]
[425083995,1781475040000,-500.0,0.00013698,2]
[425083968,1781475040000,-500.0,0.00013698,2]
[425083963,1781475040000,-500.0,0.00013698,2]
[425083970,1781475040000,-500.0,0.00013698,2]
[425083972,1781475040000,-615.34468037,0.00013698,2]
[425083974,1781475040000,-500.0,0.00013698,2]
[425083980,1781475040000,-500.0,0.00013698,2]
[425083976,1781475040000,-500.0,0.00013698,2]
[425083978,1781475040000,-500.0,0.00013698,2]
[425083983,1781475040000,-500.0,0.00013698,2]
[425083991,1781475040000,-500.0,0.00013698,2]
[425083985,1781475040000,-500.0,0.00013698,2]
[425083987,1781475040000,-500.0,0.00013698,2]
[425083993,1781475040000,-500.0,0.00013698,2]
[425083966,1781475040000,-215.22129672,0.00013698,2]
[425084054,1781475040000,-1594.22,0.00013699,2]
[425084022,1781475040000,-500.0,0.00013698,2]
[425084058,1781475040000,-1680.03980667,0.00013741,2]
[425084134,1781475040000,-242.08073426,0.00014452,2]
[425084136,1781475040000,-700.0,0.00014454,2]
[425084127,1781475040000,-500.0,0.00014399,2]
[425084139,1781475040000,-387.84,0.00014504,2]
[425084137,1781475040000,-500.0,0.00014504,2]
[425084142,1781475040000,-286.43594487,0.00014533,2]
[425084132,1781475040000,-353959.86694801,0.000144,2]
[425084146,1781475040000,-350.0,0.00014565,3]
[425084144,1781475040000,-350.0,0.00014533,3]
[425084125,1781475040000,-500.0,0.00014399,2]
[425084130,1781475040000,-500.0,0.00014399,2]
[425084153,1781475040000,-961.87,0.00014732,2]
[425084123,1781475040000,-631.01,0.00014399,2]
[425084159,1781475040000,-500.0,0.0001474,2]
[425084150,1781475040000,-151.0,0.0001463,2]
[425084155,1781475040000,-500.0,0.0001474,2]
[425084157,1781475040000,-631.01,0.0001474,2]
[425084170,1781475040000,-11700.47680046,0.00014741,2]
[425084161,1781475040000,-500.0,0.0001474,2]
[425084168,1781475040000,-7821.48701395,0.00014741,2]
[425084164,1781475040000,-581.8,0.0001474,2]
[425084166,1781475040000,-4433.65163063,0.00014741,2]
[425084172,1781475040000,-15831.1593,0.00014741,2]
[425084176,1781475040000,-10000.0,0.000148,2]
[425084174,1781475040000,-350.0,0.000148,2]
[425084056,1781475040000,-200.0,0.00013699,2]
[425084148,1781475040000,-9808.95666259,0.0001459,2]
[425084119,1781475040000,-350.0,0.00014308,3]
[425084066,1781475040000,-500.0,0.0001393,2]
[425084117,1781475040000,-502.35889749,0.00014299,2]
[425084048,1781475040000,-500.0,0.00013698,2]
[425084121,1781475040000,-500.0,0.00014399,2]
[425084068,1781475040000,-500.0,0.0001393,2]
[425084064,1781475040000,-500.0,0.0001393,2]
[425084060,1781475040000,-500.0,0.0001393,2]
[425084062,1781475040000,-631.01,0.0001393,2]
[425084072,1781475040000,-500.0,0.00013989,2]
[425084074,1781475040000,-500.0,0.00013989,2]
[425084077,1781475040000,-3000.0,0.00013989,2]
[425084094,1781475040000,-288.89646195,0.00014087,2]
[425084081,1781475040000,-60000.0,0.0001399,2]
[425084092,1781475040000,-286.43594487,0.00014065,2]
[425084079,1781475040000,-250.0,0.00013989,2]
[425084070,1781475040000,-9808.95666259,0.00013971,2]
[425084083,1781475040000,-1500.0,0.00014,2]
[425084096,1781475040000,-175.51,0.00014208,2]
[425084108,1781475040000,-433.0,0.00014249,2]
[425084112,1781475040000,-226.33260723,0.00014298,2]
[425084110,1781475040000,-9808.95666259,0.00014281,2]
[425084106,1781475040000,-200.63335723,0.00014233,2]
[425084114,1781475040000,-500.0,0.00014298,2]
[425084101,1781475040000,-151.0,0.00014233,2]
[425084099,1781475040000,-477.68248327,0.0001421,7]
[425084085,1781475040000,-250.0,0.00014,2]
[425084087,1781475040000,-202.105689,0.00014,2]
[425084090,1781475040000,-242.08073426,0.00014004,2]
[425084103,1781475040000,-156.587,0.00014233,2]
[425084255,1781475041000,-738.18944138,0.00014899,2]
[425084251,1781475041000,-500.0,0.00014899,2]
[425084245,1781475041000,-500.0,0.00014899,2]
[425084242,1781475041000,-500.0,0.00014899,2]
[425084240,1781475041000,-500.0,0.00014899,2]
[425084253,1781475041000,-500.0,0.00014899,2]
[425084247,1781475041000,-500.0,0.00014899,2]
[425084257,1781475041000,-738.18944138,0.000149,2]
[425084238,1781475041000,-500.0,0.00014899,2]
[425084249,1781475041000,-500.0,0.00014899,2]
[425084268,1781475041000,-10857.04665394,0.000149,2]
[425084302,1781475041000,-500.0,0.000149,2]
[425084272,1781475041000,-2991.57404873,0.000149,2]
[425084263,1781475041000,-33287.1579,0.000149,2]
[425084259,1781475041000,-2000.0,0.000149,2]
[425084266,1781475041000,-1032.9,0.000149,2]
[425084304,1781475041000,-500.0,0.000149,2]
[425084306,1781475041000,-500.0,0.000149,2]
[425084309,1781475041000,-500.0,0.000149,2]
[425084295,1781475041000,-242.08073426,0.000149,2]
[425084297,1781475041000,-151.0,0.000149,2]
[425084234,1781475041000,-631.01,0.00014899,2]
[425084270,1781475041000,-151.0,0.000149,2]
[425084236,1781475041000,-500.0,0.00014899,2]
[425084202,1781475041000,-364.0,0.00014883,5]
[425084228,1781475041000,-631.01,0.00014899,2]
[425084183,1781475041000,-1948.32316134,0.00014847,2]
[425084185,1781475041000,-500.0,0.00014847,2]
[425084187,1781475041000,-504.0687638,0.00014847,2]
[425084179,1781475041000,-502.0,0.00014822,2]
[425084181,1781475041000,-500.0,0.00014846,2]
[425084191,1781475041000,-825.37424,0.0001485,2]
[425084189,1781475041000,-44799.33023697,0.0001485,2]
[425084193,1781475041000,-825.37424,0.0001485,2]
[425084195,1781475041000,-825.37424,0.0001485,2]
[425084197,1781475041000,-504.7655068,0.00014873,2]
[425084207,1781475041000,-247.49240479,0.00014899,2]
[425084311,1781475041000,-500.0,0.000149,2]
[425084199,1781475041000,-200.0,0.00014879,2]
[425084209,1781475041000,-500.0,0.00014899,2]
[425084200,1781475041000,-200.0,0.0001488,2]
[425084211,1781475041000,-500.0,0.00014899,2]
[425084205,1781475041000,-247.4924048,0.00014897,2]
[425084214,1781475041000,-500.0,0.00014899,2]
[425084217,1781475041000,-257.28934228,0.00014899,2]
[425084220,1781475041000,-631.01,0.00014899,2]
[425084223,1781475041000,-631.01,0.00014899,2]
[425084226,1781475041000,-631.01,0.00014899,2]
[425084230,1781475041000,-631.01,0.00014899,2]
[425084232,1781475041000,-631.01,0.00014899,2]
[425084300,1781475041000,-500.0,0.000149,2]
[425084261,1781475041000,-4951.924,0.000149,2]
[425084315,1781475041000,-500.0,0.000149,2]
[425084375,1781475041000,-500.0,0.000149,2]
[425084382,1781475041000,-500.0,0.000149,2]
[425084378,1781475041000,-500.0,0.000149,2]
[425084380,1781475041000,-500.0,0.000149,2]
[425084384,1781475041000,-221.88136,0.000149,2]
[425084371,1781475041000,-500.0,0.000149,2]
[425084373,1781475041000,-500.0,0.000149,2]
[425084388,1781475041000,-500.0,0.000149,2]
[425084386,1781475041000,-500.0,0.000149,2]
[425084390,1781475041000,-500.0,0.000149,2]
[425084393,1781475041000,-500.0,0.000149,2]
[425084369,1781475041000,-221.88136,0.000149,2]
[425084395,1781475041000,-500.0,0.000149,2]
[425084397,1781475041000,-221.88136,0.000149,2]
[425084401,1781475041000,-500.0,0.000149,2]
[425084411,1781475041000,-500.0,0.000149,2]
[425084413,1781475041000,-500.0,0.000149,2]
[425084403,1781475041000,-500.0,0.000149,2]
[425084405,1781475041000,-500.0,0.000149,2]
[425084407,1781475041000,-500.0,0.000149,2]
[425084313,1781475041000,-500.0,0.000149,2]
[425084415,1781475041000,-500.0,0.000149,2]
[425084418,1781475041000,-500.0,0.000149,2]
[425084420,1781475041000,-500.0,0.000149,2]
[425084399,1781475041000,-500.0,0.000149,2]
[425084365,1781475041000,-500.0,0.000149,2]
[425084409,1781475041000,-221.88136,0.000149,2]
[425084363,1781475041000,-500.0,0.000149,2]
[425084367,1781475041000,-500.0,0.000149,2]
[425084317,1781475041000,-500.0,0.000149,2]
[425084323,1781475041000,-500.0,0.000149,2]
[425084322,1781475041000,-500.0,0.000149,2]
[425084332,1781475041000,-500.0,0.000149,2]
[425084325,1781475041000,-500.0,0.000149,2]
[425084327,1781475041000,-500.0,0.000149,2]
[425084334,1781475041000,-500.0,0.000149,2]
[425084336,1781475041000,-500.0,0.000149,2]
[425084324,1781475041000,-500.0,0.000149,2]
[425084329,1781475041000,-500.0,0.000149,2]
[425084320,1781475041000,-500.0,0.000149,2]
[425084357,1781475041000,-500.0,0.000149,2]
[425084350,1781475041000,-500.0,0.000149,2]
[425084340,1781475041000,-500.0,0.000149,2]
[425084352,1781475041000,-500.0,0.000149,2]
[425084355,1781475041000,-500.0,0.000149,2]
[425084361,1781475041000,-500.0,0.000149,2]
[425084359,1781475041000,-500.0,0.000149,2]
[425084344,1781475041000,-500.0,0.000149,2]
[425084348,1781475041000,-500.0,0.000149,2]
[425084346,1781475041000,-500.0,0.000149,2]
[425084342,1781475041000,-500.0,0.000149,2]
[425084338,1781475041000,-500.0,0.000149,2]
[425084481,1781475042000,-738.18944138,0.000149,2]
[425084478,1781475042000,-2000.0,0.000149,2]
[425084487,1781475042000,-173.05383907,0.00014925,2]
[425084490,1781475042000,-755.35630847,0.00014945,2]
[425084494,1781475042000,-163.06545356,0.00014985,2]
[425084497,1781475042000,-633.2595814,0.00014985,2]
[425084501,1781475042000,-382.63747358,0.0001499,2]
[425084503,1781475042000,-382.63747358,0.0001499,2]
[425084507,1781475042000,-113097.3150311,0.00014994,2]
[425084499,1781475042000,-150.0,0.00014986,2]
[425084518,1781475042000,-500.0,0.00014997,2]
[425084509,1781475042000,-10542.5316768,0.00014995,2]
[425084520,1781475042000,-500.0,0.00014997,2]
[425084516,1781475042000,-500.0,0.00014997,2]
[425084511,1781475042000,-151.0,0.00014997,2]
[425084524,1781475042000,-500.0,0.00014997,2]
[425084513,1781475042000,-83589.0373355,0.00014997,2]
[425084522,1781475042000,-500.0,0.00014997,2]
[425084472,1781475042000,-951.85651,0.000149,2]
[425084529,1781475042000,-500.0,0.00014997,2]
[425084505,1781475042000,-500.0,0.00014992,2]
[425084484,1781475042000,-291.74221137,0.00014908,2]
[425084462,1781475042000,-158.61093,0.000149,2]
[425084475,1781475042000,-247.49240479,0.000149,2]
[425084532,1781475042000,-9119.8365134,0.00014998,2]
[425084434,1781475042000,-151.0,0.000149,2]
[425084422,1781475042000,-500.0,0.000149,2]
[425084424,1781475042000,-500.0,0.000149,2]
[425084427,1781475042000,-500.0,0.000149,2]
[425084432,1781475042000,-151.0,0.000149,2]
[425084436,1781475042000,-151.0,0.000149,2]
[425084438,1781475042000,-151.0,0.000149,2]
[425084441,1781475042000,-151.0,0.000149,2]
[425084443,1781475042000,-151.0,0.000149,2]
[425084451,1781475042000,-249.13739347,0.000149,2]
[425084457,1781475042000,-151.0,0.000149,2]
[425084446,1781475042000,-151.0,0.000149,2]
[425084459,1781475042000,-151.0,0.000149,2]
[425084448,1781475042000,-151.0,0.000149,2]
[425084453,1781475042000,-9808.95666259,0.000149,2]
[425084455,1781475042000,-151.0,0.000149,2]
[425084464,1781475042000,-951.85651,0.000149,2]
[425084466,1781475042000,-951.85651,0.000149,2]
[425084429,1781475042000,-500.0,0.000149,2]
[425084468,1781475042000,-951.85651,0.000149,2]
[425084470,1781475042000,-151.0,0.000149,2]
[425084534,1781475042000,-631.01,0.00014998,2]
[425084582,1781475042000,-400.0,0.00014999,2]
[425084536,1781475042000,-500.0,0.00014998,2]
[425084581,1781475042000,-500.0,0.00014999,2]
[425084585,1781475042000,-500.0,0.00014999,2]
[425084590,1781475042000,-500.0,0.00014999,2]
[425084594,1781475042000,-500.0,0.00014999,2]
[425084596,1781475042000,-500.0,0.00014999,2]
[425084592,1781475042000,-500.0,0.00014999,2]
[425084598,1781475042000,-500.0,0.00014999,2]
[425084602,1781475042000,-500.0,0.00014999,2]
[425084600,1781475042000,-500.0,0.00014999,2]
[425084604,1781475042000,-500.0,0.00014999,2]
[425084606,1781475042000,-500.0,0.00014999,2]
[425084608,1781475042000,-500.0,0.00014999,2]
[425084610,1781475042000,-174.7138769,0.00014999,2]
[425084614,1781475042000,-250.0,0.00014999,2]
[425084621,1781475042000,-4158109.0113309,0.00015,2]
[425084612,1781475042000,-3000.0,0.00014999,2]
[425084618,1781475042000,-300.0,0.00014999,2]
[425084626,1781475042000,-1689.82428399,0.00015,2]
[425084624,1781475042000,-396.34947982,0.00015,2]
[425084639,1781475042000,-34901.19961694,0.00015,2]
[425084527,1781475042000,-500.0,0.00014997,2]
[425084579,1781475042000,-500.0,0.00014999,2]
[425084588,1781475042000,-500.0,0.00014999,2]
[425084617,1781475042000,-300.0,0.00014999,2]
[425084576,1781475042000,-306.67542137,0.00014999,2]
[425084540,1781475042000,-1049.94660961,0.00014999,5]
[425084586,1781475042000,-500.0,0.00014999,2]
[425084542,1781475042000,-1049.94660961,0.00014999,5]
[425084544,1781475042000,-1049.94660959,0.00014999,5]
[425084538,1781475042000,-376.62,0.00014998,2]
[425084546,1781475042000,-181492.2476361,0.00014999,2]
[425084550,1781475042000,-5349.504111,0.00014999,2]
[425084555,1781475042000,-631.01,0.00014999,2]
[425084559,1781475042000,-631.01,0.00014999,2]
[425084557,1781475042000,-631.01,0.00014999,2]
[425084548,1781475042000,-243.5652253,0.00014999,2]
[425084572,1781475042000,-500.0,0.00014999,2]
[425084553,1781475042000,-631.01,0.00014999,2]
[425084561,1781475042000,-631.01,0.00014999,2]
[425084563,1781475042000,-631.01,0.00014999,2]
[425084570,1781475042000,-500.0,0.00014999,2]
[425084574,1781475042000,-500.0,0.00014999,2]
[425084565,1781475042000,-631.01,0.00014999,2]
[425084577,1781475042000,-500.0,0.00014999,2]
[425084575,1781475042000,-500.0,0.00014999,2]
[425084568,1781475042000,-631.09,0.00014999,2]
[425084573,1781475042000,-500.0,0.00014999,2]
[425084731,1781475043000,-570.72982862,0.00015,2]
[425084755,1781475043000,-419.62051996,0.00015,2]
[425084750,1781475043000,-263.98400862,0.00015,2]
[425084758,1781475043000,-3591.0209975,0.00015,2]
[425084769,1781475043000,-1483.57598021,0.00015,2]
[425084767,1781475043000,-18854.93765589,0.00015,2]
[425084772,1781475043000,-5333.6184774,0.00015,2]
[425084826,1781475043000,-320715.84608858,0.00015,2]
[425084823,1781475043000,-5596.15194812,0.00012573,2]
[425084765,1781475043000,-521.64962786,0.00015,2]
[425084895,1781475044000,-1847.9643053,0.00015,2]
[425084865,1781475044000,-10502.022,0.00015,2]
[425085126,1781475046000,-1382.6897937,0.00012009,2]
[425085129,1781475046000,-11682.34865599,0.00014987,2]
[425085123,1781475046000,-617.3102063,0.00012009,2]
[425085139,1781475046000,-3322.38382827,0.00014987,2]
[425085159,1781475046000,-1469.09908381,0.00014987,2]
[425085174,1781475046000,-255964.7035204,0.00014987,2]
[425085172,1781475046000,-310.546,0.00014987,2]
[425085176,1781475046000,-70030.2964796,0.00014988,2]
[425085187,1781475046000,-3416.99999992,0.00014988,2]
[425085185,1781475046000,-384.47396322,0.00014988,2]
[425085161,1781475046000,-1863.09959973,0.00014987,2]
[425085659,1781475221000,68319.06,0.00030136,120]
[425085660,1781475253000,-150.0,0.00010936,2]
[425085661,1781475306000,-484.64387402,0.00010968,2]
[425085663,1781475360000,-1126.34053152,0.00011108,2]
[425085664,1781475413000,-173.22239474,0.0001,2]
[425085665,1781475467000,-162.51,0.0001094,2]
[425085670,1781475520000,-299.79404186,0.00010983,2]
[425085671,1781475574000,-150.0,0.00010983,2]
[425085672,1781475627000,-1006.92,0.00010934,2]
[425085674,1781475681000,-150.0,0.00010606,2]
[425085675,1781475734000,-194.20298321,0.00011047,2]
[425085676,1781475758000,1500.0,0.0003,120]
[425085680,1781475808000,1300.0,0.0003,120]
[425085683,1781475893000,-3155.9,0.00010955,2]
[425085684,1781475946000,-1376.29517584,0.00010915,2]
[425085685,1781475965000,-420.52482416,0.00010915,2]
[425085686,1781476015000,-150.0,0.00010959,2]
[425085688,1781476068000,-797.91049134,0.00010702,2]
[425085689,1781476086000,-1169.79855209,0.00010702,2]
[425085690,1781476103000,-410.97,0.00010666,2]
[425085691,1781476153000,-500.0,0.00010701,2]
[425085692,1781476156000,-500.0,0.00010701,2]
[425085694,1781476156000,-500.0,0.00010701,2]
[425085695,1781476156000,-874.04074903,0.00010702,2]
[425085693,1781476156000,-578.28450223,0.00010701,2]
[425085706,1781476160000,-682.38,0.0001096,2]
[425085697,1781476160000,-200.0,0.00010732,2]
[425085696,1781476160000,-3702.67020754,0.00010702,2]
[425085698,1781476160000,-197.82737598,0.00010859,2]
[425085700,1781476160000,-500.0,0.00010893,2]
[425085699,1781476160000,-500.0,0.00010893,2]
[425085701,1781476160000,-164.25418807,0.00010893,2]
[425085705,1781476160000,-166.66,0.00010959,2]
[425085704,1781476160000,-12305.99,0.00010894,2]
[425085703,1781476160000,-195.54191592,0.00010893,2]
[425085702,1781476160000,-592.94526922,0.00010893,2]
[425085707,1781476160000,-532.85,0.00011001,2]
[425085708,1781476160000,-166.67,0.00011004,2]
[425085717,1781476160000,-427.5,0.00011479,2]
[425085709,1781476160000,-166.66,0.0001107,2]
[425085711,1781476160000,-1875.01,0.00011147,2]
[425085712,1781476160000,-166.66,0.0001118,2]
[425085713,1781476160000,-504.82729262,0.00011208,2]
[425085716,1781476160000,-166.66,0.00011402,2]
[425085714,1781476160000,-166.66,0.00011291,2]
[425085715,1781476160000,-192.28,0.00011351,2]
[425085718,1781476160000,-166.66,0.00011513,2]
[425085719,1781476160000,-1800.0,0.000116,4]
[425085721,1781476160000,-3700.0,0.000117,4]
[425085720,1781476160000,-192.28,0.00011634,2]
[425085722,1781476160000,-1000.0,0.00011799,2]
[425085710,1781476160000,-1423.44,0.0001114,2]
[425085723,1781476160000,-5600.0,0.000118,4]
[425085724,1781476161000,-506.7279385,0.000118,2]
[425085725,1781476207000,-150.0,0.00010959,2]
[425085732,1781476232000,-2091.21562651,0.000118,2]
[425085736,1781476232000,-342.18,0.00011808,2]
[425085730,1781476232000,-96.2212558,0.000118,2]
[425085731,1781476232000,-305.83517919,0.000118,2]
[425085729,1781476232000,-1899.7787442,0.0001111,2]
[425085735,1781476232000,-34112.78244203,0.00011808,2]
[425085733,1781476232000,-1288.51431369,0.00011808,2]
[425085734,1781476232000,-58538.68923216,0.00011808,2]
[425085799,1781476238000,-23811.0,0.00011973,2]
[425085790,1781476238000,-328.32718392,0.00011898,2]
[425085786,1781476238000,-3305.2546788,0.00011872,2]
[425085793,1781476238000,-752.14783226,0.00011908,2]